bitfinex/quotes_BTCUSD_20220109
["timestamp","ask_amount","ask_price","bid_price","bid_amount"]
[1641740901964,0.014,41541.0,41540.0,0.06050622]
[1641740902163,0.014,41541.0,41540.0,0.00032]
[1641740903119,0.24552687,41541.0,41540.0,0.00032]
[1641740903320,0.23152687,41541.0,41540.0,0.00032]
[1641740903518,0.11783884,41542.0,41540.0,0.00032]
[1641740903718,0.07261884,41542.0,41540.0,0.00032]
[1641740903919,0.013,41541.0,41540.0,0.00032]
[1641740905121,0.07261884,41542.0,41540.0,0.00032]
[1641740905919,0.08661884,41542.0,41540.0,0.00032]
[1641740907163,0.07261884,41542.0,41540.0,0.00032]
[1641740907964,0.08661884,41542.0,41540.0,0.00032]
[1641740909168,0.07261884,41542.0,41540.0,0.00032]
[1641740909367,0.07261884,41542.0,41540.0,0.060509]
[1641740909965,0.08761884,41542.0,41540.0,0.060509]
[1641740911219,0.07261884,41542.0,41540.0,0.00032]
[1641740912016,0.08661884,41542.0,41540.0,0.00032]
[1641740912416,0.08661884,41542.0,41540.0,0.06050745]
[1641740913219,0.07261884,41542.0,41540.0,0.06050745]
[1641740914063,0.08761884,41542.0,41540.0,0.06050745]
[1641740914870,0.23063355,41541.0,41540.0,0.06050745]
[1641740915068,0.08761884,41542.0,41540.0,0.06050745]
[1641740915270,0.07261884,41542.0,41540.0,0.06050745]
[1641740915671,0.06261884,41542.0,41540.0,0.06050745]
[1641740916073,0.07761884,41542.0,41540.0,0.06050745]
[1641740916568,0.23134397,41541.0,41540.0,0.06050745]
[1641740916768,0.07761884,41542.0,41540.0,0.06050745]
[1641740917369,0.06261884,41542.0,41540.0,0.06050745]
[1641740918015,0.07661884,41542.0,41540.0,0.06050745]
[1641740919217,0.06261884,41542.0,41540.0,0.06050745]
[1641740919418,0.06261884,41542.0,41541.0,0.24306423]
[1641740920020,0.014,41542.0,41541.0,0.24306423]
[1641740920223,0.014,41542.0,41541.0,0.578118]
[1641740920421,0.014,41542.0,41541.0,0.94513179]
[1641740920619,0.014,41542.0,41541.0,1.04513179]
[1641740921021,0.014,41542.0,41541.0,0.778118]
[1641740921219,0.00160649,41547.0,41541.0,0.728118]
[1641740921423,0.00160649,41547.0,41541.0,0.772807]
[1641740921666,0.00160649,41547.0,41541.0,0.722807]
[1641740922065,0.02260649,41547.0,41541.0,0.726807]
[1641740922266,0.0212082,41547.0,41541.0,0.576807]
[1641740922467,0.0212082,41547.0,41541.0,0.726807]
[1641740922869,0.0212082,41547.0,41543.0,0.060179]
[1641740923068,0.0212082,41547.0,41544.0,0.0478]
[1641740923269,0.0002082,41547.0,41544.0,0.10797846]
[1641740923870,0.0997782,41548.0,41544.0,0.10797846]
[1641740924071,0.09979,41549.0,41544.0,0.10797846]
[1641740924472,0.09979,41549.0,41544.0,0.16815746]
[1641740924670,0.42,41551.0,41548.0,0.33590586]
[1641740924871,0.42,41551.0,41549.0,0.1203479]
[1641740925516,0.42,41551.0,41546.0,0.240696]
[1641740925717,0.42,41551.0,41546.0,0.180522]
[1641740926118,0.439,41551.0,41548.0,0.120348]
[1641740926315,0.78613047,41551.0,41548.0,0.120348]
[1641740926514,0.439,41551.0,41548.0,0.120348]
[1641740926716,0.439,41551.0,41548.0,0.3008718]
[1641740927117,0.439,41551.0,41549.0,0.12034646]
[1641740927316,0.42,41551.0,41549.0,0.16814646]
[1641740927916,0.1001174,41552.0,41549.0,0.16814646]
[1641740928118,0.30803001,41551.0,41549.0,0.28848346]
[1641740928518,0.034,41551.0,41549.0,0.28848346]
[1641740928721,0.7041,41555.0,41550.0,0.060167]
[1641740928918,0.389039,41554.0,41550.0,0.060167]
[1641740929567,0.67731101,41555.0,41550.0,0.060167]
[1641740929767,0.389039,41554.0,41550.0,0.060167]
[1641740929968,0.67731101,41555.0,41550.0,0.060167]
[1641740931371,0.67742828,41555.0,41550.0,0.060167]
[1641740932172,0.67482161,41555.0,41550.0,0.060167]
[1641740932572,0.67491987,41555.0,41550.0,0.060167]
[1641740933223,0.67491987,41555.0,41549.0,1.247e-05]
[1641740933421,0.389039,41554.0,41549.0,1.247e-05]
[1641740934024,0.437039,41554.0,41549.0,1.247e-05]
[1641740934223,0.437039,41554.0,41549.0,0.06018547]
[1641740934822,0.43725105,41554.0,41549.0,0.06018547]
[1641740935124,0.04821205,41554.0,41549.0,0.06018547]
[1641740935323,0.00021205,41554.0,41549.0,0.06018547]
[1641740935523,0.00021205,41554.0,41550.0,0.060173]
[1641740935723,0.00042003,41554.0,41550.0,0.060173]
[1641740935924,0.00020798,41554.0,41550.0,0.060173]
[1641740936126,0.02920798,41554.0,41550.0,0.060173]
[1641740937370,0.00020798,41554.0,41550.0,0.060173]
[1641740937967,0.0002081,41554.0,41550.0,0.060173]
[1641740940168,0.00041628,41554.0,41550.0,0.060173]
[1641740940414,0.00020818,41554.0,41550.0,0.060173]
[1641740940615,0.00020818,41554.0,41548.0,0.30103441]
[1641740941415,0.00020818,41554.0,41549.0,0.060173]
[1641740941617,0.389039,41553.0,41549.0,0.060173]
[1641740941816,0.00020818,41554.0,41549.0,0.12034646]
[1641740942016,0.389039,41553.0,41549.0,0.06017346]
[1641740942215,0.389039,41553.0,41548.0,0.18069541]
[1641740942416,0.389039,41553.0,41548.0,0.06034759]
[1641740942617,0.389039,41553.0,41548.0,0.00017359]
[1641740942618,0.19550696,41552.0,41548.0,0.00017359]
[1641740942818,0.389039,41551.0,41548.0,0.00017359]
[1641740943019,0.65156206,41551.0,41548.0,0.00017359]
[1641740943619,0.65156206,41551.0,41547.0,0.0001736]
[1641740943820,0.00121589,41549.0,41547.0,0.0001736]
[1641740944068,0.389039,41548.0,41547.0,0.0001736]
[1641740944674,0.62425305,41548.0,41545.0,0.06036461]
[1641740944970,0.62425305,41548.0,41545.0,0.00017361]
[1641740945170,0.389039,41548.0,41545.0,0.00017361]
[1641740945371,0.00121589,41549.0,41545.0,0.00017361]
[1641740945572,0.009,41551.0,41545.0,0.00017361]
[1641740945771,0.009,41551.0,41546.0,0.060188]
[1641740945970,0.009,41551.0,41544.0,0.12052662]
[1641740945971,0.389039,41550.0,41544.0,0.12052662]
[1641740946173,0.01,41551.0,41545.0,0.011]
[1641740946370,0.25214724,41551.0,41545.0,0.011]
[1641740946970,0.25214724,41551.0,41547.0,0.060175]
[1641740947371,0.24214724,41551.0,41547.0,0.12034903]
[1641740947921,0.24214724,41551.0,41547.0,0.12052263]
[1641740948120,0.25814724,41551.0,41547.0,0.12052263]
[1641740949222,0.24214724,41551.0,41547.0,0.12052263]
[1641740950121,0.24914724,41551.0,41547.0,0.12052263]
[1641740951122,0.24914724,41551.0,41548.0,0.060176]
[1641740951322,0.24214724,41551.0,41548.0,0.120353]
[1641740951970,0.389039,41550.0,41547.0,0.12052263]
[1641740952467,0.25114724,41551.0,41547.0,0.18070063]
[1641740953066,0.25114724,41551.0,41547.0,0.12052263]
[1641740953269,0.389039,41550.0,41547.0,0.12052263]
[1641740953468,0.389039,41550.0,41547.0,0.0603486]
[1641740954068,0.399039,41550.0,41547.0,0.0603486]
[1641740954271,0.26803614,41549.0,41547.0,0.0603486]
[1641740954671,0.26803614,41549.0,41547.0,0.060175]
[1641740954969,0.389039,41548.0,41547.0,0.060175]
[1641740955170,0.64814202,41548.0,41547.0,0.060175]
[1641740955826,0.64814202,41548.0,41542.0,0.24074421]
[1641740956027,0.22628248,41547.0,41542.0,0.24074421]
[1641740956227,0.013,41548.0,41542.0,0.24074421]
[1641740957029,0.013,41548.0,41542.0,0.30092821]
[1641740957426,0.24676445,41550.0,41542.0,0.30092821]
[1641740957829,0.24676445,41550.0,41543.0,0.00017938]
[1641740958227,0.25576445,41550.0,41543.0,0.00017938]
[1641740959069,0.25576445,41550.0,41543.0,0.00017937]
[1641740959470,0.24676445,41550.0,41543.0,0.00017937]
[1641740960170,0.23248176,41550.0,41543.0,0.00017937]
[1641740960370,0.008,41550.0,41543.0,0.00017937]
[1641740960571,0.2308009,41550.0,41543.0,0.00017937]
[1641740960971,0.2308009,41550.0,41543.0,0.12053437]
[1641740961372,0.24236278,41551.0,41543.0,0.12053437]
[1641740961574,0.22228885,41550.0,41543.0,0.12053437]
[1641740962177,0.23028885,41550.0,41543.0,0.17053437]
[1641740962375,0.23028885,41550.0,41543.0,0.1707074]
[1641740962575,0.23019372,41550.0,41543.0,0.17052803]
[1641740963018,0.008,41550.0,41544.0,0.05]
[1641740963218,0.008,41550.0,41544.0,0.34992014]
[1641740963417,0.24235528,41551.0,41544.0,0.34992014]
[1641740963618,0.00020804,41551.0,41544.0,0.44992014]
[1641740964218,0.00920804,41551.0,41544.0,0.44992014]
[1641740964417,0.00920804,41551.0,41544.0,0.44786262]
[1641740964618,0.00920805,41551.0,41544.0,0.44786262]
[1641740965420,0.00020805,41551.0,41544.0,0.44786262]
[1641740965619,0.00020805,41551.0,41544.0,1.01258797]
[1641740966218,0.00420805,41551.0,41544.0,1.01258797]
[1641740966672,0.00420819,41551.0,41548.0,0.060174]
[1641740966872,0.00420819,41551.0,41549.0,0.12034512]
[1641740967477,0.00020819,41551.0,41549.0,0.12034512]
[1641740967873,0.00020819,41552.0,41549.0,0.12034512]
[1641740968272,0.026,41551.0,41549.0,0.12034512]
[1641740968874,0.026,41551.0,41548.0,9.9e-07]
[1641740969475,0.00020819,41552.0,41548.0,9.9e-07]
[1641740969675,0.00020819,41552.0,41548.0,0.06017399]
[1641740969875,0.00020819,41552.0,41549.0,0.06017212]
[1641740970078,0.00020819,41552.0,41549.0,0.12034512]
[1641740970322,0.01320819,41552.0,41549.0,0.12034512]
[1641740971126,0.013,41552.0,41546.0,0.400853]
[1641740971325,0.00020818,41553.0,41546.0,0.400853]
[1641740971824,0.00020818,41553.0,41548.0,0.120347]
[1641740972225,0.00020818,41552.0,41548.0,0.120347]
[1641740972424,0.00020818,41552.0,41548.0,0.170347]
[1641740972626,0.00020818,41552.0,41548.0,0.120347]
[1641740972824,0.00020818,41552.0,41549.0,0.12034512]
[1641740973623,0.00020818,41552.0,41549.0,0.17034512]
[1641740974268,0.01520818,41552.0,41549.0,0.17534512]
[1641740974469,0.015,41552.0,41549.0,0.17534512]
[1641740975372,0.00020818,41553.0,41549.0,0.17034512]
[1641740976173,0.00820818,41553.0,41549.0,0.17934512]
[1641740977173,0.00820818,41553.0,41549.0,0.12934512]
[1641740977373,0.00020818,41553.0,41549.0,0.12034512]
[1641740977574,0.00020818,41553.0,41549.0,0.17034512]
[1641740978213,0.01620818,41553.0,41549.0,0.17134512]
[1641740979015,0.01620818,41553.0,41550.0,0.0478]
[1641740979216,0.01620818,41553.0,41551.0,0.120317]
[1641740979414,0.00020818,41553.0,41552.0,0.0478]
[1641740979615,0.00020818,41553.0,41552.0,0.0978]
[1641740980014,0.00020818,41553.0,41552.0,0.1478]
[1641740980314,0.00020818,41553.0,41552.0,0.1608]
[1641740980513,0.41760151,41555.0,41552.0,0.1608]
[1641740980716,0.41760151,41555.0,41553.0,0.24065572]
[1641740980914,0.41760151,41555.0,41554.0,0.0978]
[1641740981114,0.41739333,41555.0,41554.0,0.0978]
[1641740982173,0.43739333,41555.0,41554.0,0.1038]
[1641740982572,0.43739333,41555.0,41554.0,0.1091]
[1641740983375,0.43739333,41555.0,41554.0,0.37000701]
[1641740983575,0.43739333,41555.0,41554.0,0.47000701]
[1641740983974,0.00139829,41559.0,41554.0,0.47000701]
[1641740984174,0.015,41555.0,41554.0,0.46770701]
[1641740984373,0.015,41555.0,41554.0,0.47299001]
[1641740984573,0.00020817,41557.0,41554.0,0.47299001]
[1641740984774,0.00020817,41557.0,41555.0,0.005284]
[1641740984973,0.00020817,41557.0,41556.0,0.0478]
[1641740985321,0.00020817,41557.0,41556.0,0.053082]
[1641740985520,0.00139829,41559.0,41556.0,0.053082]
[1641740985721,0.00139829,41559.0,41557.0,0.1804747]
[1641740986323,0.174932,41563.0,41555.0,0.12472061]
[1641740986621,0.174932,41563.0,41556.0,0.0478]
[1641740987021,0.174932,41563.0,41559.0,0.120314]
[1641740988227,0.174932,41563.0,41559.0,0.320314]
[1641740988531,0.174932,41563.0,41561.0,0.06015]
[1641740988724,0.17514751,41563.0,41562.0,0.25357794]
[1641740988924,0.17514751,41563.0,41562.0,0.37387294]
[1641740989168,0.17514751,41563.0,41562.0,0.47387294]
[1641740989369,0.17514751,41563.0,41562.0,0.57509959]
[1641740989569,0.17514751,41563.0,41562.0,0.84778274]
[1641740989770,0.17514751,41563.0,41562.0,0.85306174]
[1641740989969,0.174932,41563.0,41562.0,0.85306174]
[1641740990171,0.174932,41563.0,41562.0,0.86406174]
[1641740991370,0.174932,41563.0,41562.0,0.85306174]
[1641740992269,0.174932,41563.0,41562.0,0.87106174]
[1641740993522,0.174932,41563.0,41562.0,0.85306174]
[1641740993726,0.174932,41563.0,41562.0,0.5994838]
[1641740994325,0.174932,41563.0,41562.0,0.6174838]
[1641740995427,0.174932,41563.0,41562.0,0.6472838]
[1641740996232,0.174932,41563.0,41562.0,0.6652838]
[1641740997574,0.174932,41563.0,41562.0,0.37460065]
[1641740997872,0.174932,41563.0,41562.0,0.053079]
[1641740998270,0.174932,41563.0,41562.0,0.063079]
[1641740998673,0.174932,41563.0,41562.0,0.0578]
[1641740999071,0.48797128,41563.0,41562.0,0.0578]
[1641740999471,0.48797128,41563.0,41560.0,0.08754112]
[1641740999671,0.48797128,41563.0,41560.0,0.05]
[1641741000072,0.48797128,41563.0,41559.0,0.24062291]
[1641741000320,0.24663916,41562.0,41560.0,0.013]
[1641741000521,1.56622468,41561.0,41560.0,0.013]
[1641741001527,1.56622468,41561.0,41550.0,0.06034864]
[1641741001528,0.55,41560.0,41550.0,0.06034864]
[1641741001919,0.55,41560.0,41550.0,0.06052228]
[1641741002120,0.55,41560.0,41550.0,0.06034864]
[1641741002321,0.55,41560.0,41550.0,0.08434864]
[1641741002523,0.33850713,41557.0,41550.0,0.08434864]
[1641741002723,0.31539764,41556.0,41550.0,0.08434864]
[1641741003121,0.31539764,41556.0,41550.0,0.08435195]
[1641741003523,0.31539764,41556.0,41550.0,0.06035195]
[1641741003927,0.55133581,41556.0,41550.0,0.00017695]
[1641741004184,0.389039,41555.0,41550.0,0.00017695]
[1641741004380,0.482039,41555.0,41550.0,0.00017695]
[1641741005379,0.482039,41555.0,41550.0,0.00017677]
[1641741006178,0.482039,41555.0,41548.0,0.05823077]
[1641741006179,0.35,41554.0,41548.0,0.05823077]
[1641741006381,0.2393054,41549.0,41548.0,0.05823077]
[1641741006580,0.2393054,41549.0,41548.0,0.06352177]
[1641741007580,0.2393054,41549.0,41548.0,0.12369477]
[1641741008419,0.2393054,41549.0,41548.0,0.06352177]
[1641741008617,0.2393054,41549.0,41548.0,0.005291]
[1641741008818,0.2393054,41549.0,41548.0,0.065468]
[1641741009421,0.2393054,41549.0,41548.0,0.005291]
[1641741012172,1.1893054,41549.0,41547.0,0.120346]
[1641741012377,0.26993577,41548.0,41546.0,0.00017943]
[1641741012572,1.09032717,41547.0,41546.0,0.00017943]
[1641741013175,0.79940527,41547.0,41545.0,0.00017944]
[1641741014175,0.79940527,41547.0,41544.0,0.00016972]
[1641741014373,0.81040527,41547.0,41544.0,0.00016972]
[1641741014678,0.24873136,41546.0,41544.0,0.00016972]
[1641741015321,0.24873136,41546.0,41543.0,0.00017305]
[1641741016323,0.25973136,41546.0,41542.0,0.00017305]
[1641741016723,0.25973136,41546.0,41539.0,0.0811503]
[1641741016923,0.25973136,41546.0,41540.0,0.005305]
[1641741017123,0.27828533,41544.0,41540.0,0.005305]
[1641741017328,0.27828533,41544.0,41541.0,0.060189]
[1641741017524,0.27828533,41544.0,41540.0,0.120367]
[1641741017724,0.21081805,41543.0,41541.0,0.005308]
[1641741017925,0.21081805,41543.0,41539.0,0.2015233]
[1641741018325,0.45927691,41541.0,41539.0,0.2015233]
[1641741018526,0.45927691,41541.0,41539.0,0.20162165]
[1641741018926,0.21569891,41540.0,41539.0,0.20162165]
[1641741019784,0.45927691,41541.0,41540.0,0.060187]
[1641741019986,0.45927691,41541.0,41539.0,0.2015233]
[1641741020184,0.32447457,41542.0,41540.0,0.12037577]
[1641741020386,0.32447457,41542.0,41540.0,0.12737577]
[1641741020387,0.01,41541.0,41540.0,0.12737577]
[1641741021584,0.32447457,41542.0,41540.0,0.12037577]
[1641741022386,0.33547457,41542.0,41540.0,0.18056077]
[1641741023520,0.32447457,41542.0,41540.0,0.18056077]
[1641741023720,0.32447457,41542.0,41540.0,0.120374]
[1641741024118,0.32447457,41542.0,41540.0,0.060185]
[1641741024319,0.33547457,41542.0,41540.0,0.060185]
[1641741024720,0.21297905,41541.0,41540.0,0.060185]
[1641741024921,0.21232446,41541.0,41540.0,0.060185]
[1641741025119,0.20988994,41541.0,41539.0,0.081323]
[1641741025322,0.33547457,41542.0,41539.0,0.0771503]
[1641741026220,0.32447457,41542.0,41539.0,0.0771503]
[1641741026420,0.21328392,41541.0,41539.0,0.0771503]
[1641741026671,0.34147457,41542.0,41539.0,0.0771503]
[1641741027471,0.33147457,41542.0,41539.0,0.0771503]
[1641741027671,0.31447457,41542.0,41539.0,0.0771503]
[1641741028073,0.30447457,41542.0,41539.0,0.0771503]
[1641741028272,0.31347457,41542.0,41539.0,0.0791503]
[1641741030326,0.32647457,41542.0,41539.0,0.0791503]
[1641741031525,0.32647457,41542.0,41539.0,0.0771503]
[1641741031726,0.30447457,41542.0,41539.0,0.0771503]
[1641741031924,0.30447457,41542.0,41539.0,0.07100605]
[1641741032326,0.31847457,41542.0,41539.0,0.07100605]
[1641741034070,0.22565752,41541.0,41539.0,0.07100605]
[1641741034674,0.31847457,41542.0,41539.0,0.07100605]
[1641741035675,0.30447457,41542.0,41539.0,0.07100605]
[1641741036274,0.31847457,41542.0,41539.0,0.07100605]
[1641741037575,0.30447457,41542.0,41539.0,0.07100605]
[1641741038427,0.31947457,41542.0,41539.0,0.07100605]
[1641741039628,0.30447457,41542.0,41539.0,0.07100605]
[1641741040028,0.21003001,41541.0,41539.0,0.07100605]
[1641741040228,0.30447457,41542.0,41539.0,0.07100605]
[1641741040429,0.32547457,41542.0,41539.0,0.07100605]
[1641741041687,0.30437457,41542.0,41539.0,0.07100605]
[1641741042288,0.32337457,41542.0,41539.0,0.07100605]
[1641741043688,0.24405738,41542.0,41539.0,0.07100605]
[1641741044489,0.25705738,41542.0,41539.0,0.07100605]
[1641741045726,0.24405738,41542.0,41539.0,0.07100605]
[1641741046327,0.25905738,41542.0,41539.0,0.07100605]
[1641741047831,0.24405738,41542.0,41539.0,0.07100605]
[1641741048429,0.25905738,41542.0,41539.0,0.07100605]
[1641741049672,0.24405738,41542.0,41539.0,0.07100605]
[1641741050373,0.25905738,41542.0,41539.0,0.07100605]
[1641741051177,0.015,41542.0,41539.0,0.07100605]
[1641741051375,0.015,41542.0,41540.0,0.0478]
[1641741051674,0.40966877,41546.0,41540.0,0.107983]
[1641741052076,0.40966877,41546.0,41539.0,0.08558906]
[1641741052275,0.40966877,41546.0,41540.0,0.0478]
[1641741052475,0.41966877,41546.0,41540.0,0.0618]
[1641741052676,0.41966877,41546.0,41540.0,0.121983]
[1641741052931,0.41966877,41546.0,41540.0,0.18233896]
[1641741053732,0.40966877,41546.0,41540.0,0.16833896]
[1641741053930,0.40966877,41546.0,41540.0,0.04797296]
[1641741054331,0.41666877,41546.0,41540.0,0.06297296]
[1641741054930,0.41666877,41546.0,41540.0,0.06314592]
[1641741055230,0.41666877,41546.0,41540.0,0.06297296]
[1641741055632,0.41666877,41546.0,41540.0,0.04797296]
[1641741055832,0.46167393,41545.0,41540.0,0.04797296]
[1641741056131,0.46167393,41545.0,41540.0,0.00017296]
[1641741056132,0.00125325,41541.0,41540.0,0.00017296]
[1641741056335,0.00125325,41541.0,41537.0,0.71765015]
[1641741056581,0.00126189,41539.0,41537.0,0.00043]
[1641741056782,0.389039,41538.0,41537.0,0.00043]
[1641741057182,0.3,41537.0,41533.0,0.71765015]
[1641741057383,0.15449688,41533.0,41531.0,0.00453]
[1641741057983,0.44209424,41533.0,41530.0,0.47517724]
[1641741058187,1.143548,41532.0,41530.0,0.36425955]
[1641741058384,0.82635642,41531.0,41529.0,0.00043]
[1641741060427,0.26562709,41530.0,41529.0,0.00043]
[1641741060628,0.65466609,41530.0,41529.0,0.00043]
[1641741061032,0.389039,41530.0,41529.0,0.00043]
[1641741061531,0.64446894,41530.0,41529.0,0.00043]
[1641741062529,0.65446894,41530.0,41529.0,0.00043]
[1641741063137,0.389039,41529.0,41526.0,9.792e-05]
[1641741064382,0.399039,41529.0,41526.0,9.792e-05]
[1641741064985,0.01,41529.0,41526.0,9.792e-05]
[1641741065583,0.43602934,41531.0,41526.0,9.792e-05]
[1641741066383,0.44602934,41531.0,41526.0,9.792e-05]
[1641741067685,0.00125929,41528.0,41526.0,9.792e-05]
[1641741068128,0.389039,41527.0,41526.0,9.792e-05]
[1641741068428,0.00182257,41523.0,41522.0,0.0129908]
[1641741068628,0.00182257,41523.0,41522.0,0.0183288]
[1641741070434,0.00782257,41523.0,41522.0,0.0183288]
[1641741071571,0.00182257,41523.0,41522.0,0.0183288]
[1641741072371,0.00482257,41523.0,41522.0,0.0183288]
[1641741072572,0.00482257,41523.0,41522.0,0.0129908]
[1641741073071,0.00482257,41523.0,41522.0,0.0183348]
[1641741073674,0.00182257,41523.0,41522.0,0.0183348]
[1641741074478,0.01082257,41523.0,41522.0,0.0183348]
[1641741075731,0.00182257,41523.0,41522.0,0.0183348]
[1641741076131,0.00182257,41523.0,41522.0,0.0129908]
[1641741076532,0.01082257,41523.0,41522.0,0.0129908]
[1641741076932,0.26137847,41523.0,41522.0,0.0129908]
[1641741077137,0.26137847,41523.0,41513.0,0.00111249]
[1641741077138,1.0734208,41515.0,41513.0,0.00111249]
[1641741077433,0.87824296,41515.0,41513.0,0.00111249]
[1641741078034,1.05,41514.0,41510.0,0.00022]
[1641741078236,0.9001875,41508.0,41504.0,0.71735735]
[1641741078534,1.5397824,41508.0,41506.0,0.00053]
[1641741078732,1.52220538,41508.0,41506.0,0.00053]
[1641741079790,2.79620538,41508.0,41506.0,0.00053]
[1641741080190,1.52220538,41508.0,41506.0,0.00053]
[1641741080394,0.63920538,41508.0,41506.0,0.00053]
[1641741080589,0.4062265,41508.0,41506.0,0.00053]
[1641741081390,0.7562265,41508.0,41506.0,0.00053]
[1641741081889,0.3892265,41508.0,41506.0,0.00053]
[1641741082090,0.6397824,41508.0,41506.0,0.00053]
[1641741082293,1.9137824,41508.0,41506.0,0.00053]
[1641741082490,1.9247824,41508.0,41506.0,0.00053]
[1641741083635,2.4247824,41508.0,41506.0,0.00053]
[1641741083834,2.4247824,41508.0,41505.0,0.00049001]
[1641741083835,0.8,41506.0,41505.0,0.00049001]
[1641741084034,1.260139,41506.0,41505.0,0.00049001]
[1641741084434,1.260139,41506.0,41491.0,0.34882966]
[1641741084636,0.00124539,41500.0,41492.0,0.00043]
[1641741084837,0.00124539,41500.0,41497.0,0.00068019]
[1641741085036,0.389039,41499.0,41497.0,0.00068019]
[1641741085636,0.02338,41499.0,41497.0,0.00068019]
[1641741085836,0.02338,41499.0,41492.0,0.40695203]
[1641741086041,0.02338,41499.0,41495.0,0.00539]
[1641741086237,0.02338,41499.0,41492.0,0.45695203]
[1641741086437,0.03238,41499.0,41492.0,0.45695203]
[1641741086878,0.009,41499.0,41492.0,0.45695203]
[1641741087082,0.009,41499.0,41496.0,0.1]
[1641741087281,0.009,41499.0,41498.0,1.055389]
[1641741087484,0.009,41499.0,41498.0,1.153189]
[1641741087683,0.0001875,41508.0,41498.0,1.303189]
[1641741088179,0.0001875,41508.0,41504.0,0.321708]
[1641741088379,0.0001875,41508.0,41505.0,0.0478]
[1641741088579,0.0051875,41508.0,41505.0,0.0478]
[1641741088779,0.0051875,41508.0,41504.0,0.44368815]
[1641741088978,0.0051875,41508.0,41505.0,0.053174]
[1641741089378,0.0051875,41508.0,41505.0,0.31308862]
[1641741089779,0.0001875,41508.0,41505.0,0.37331862]
[1641741089981,0.0001875,41508.0,41505.0,0.43354977]
[1641741090182,0.0001875,41508.0,41505.0,0.53354977]
[1641741090427,0.0001875,41508.0,41506.0,0.05]
[1641741090629,0.0001875,41508.0,41507.0,1.1030557]
[1641741090827,0.0001875,41508.0,41507.0,1.2132797]
[1641741091029,0.0001875,41508.0,41507.0,1.3632797]
[1641741091330,0.00021564,41510.0,41508.0,0.38410929]
[1641741091529,0.00021564,41510.0,41509.0,0.31464354]
[1641741091728,0.00021564,41510.0,41509.0,0.36464354]
[1641741091931,0.00021564,41510.0,41509.0,0.253169]
[1641741092533,0.00020812,41512.0,41509.0,0.273169]
[1641741092738,0.00020812,41512.0,41510.0,0.060226]
[1641741092932,0.00020812,41512.0,41511.0,0.053165]
[1641741093732,0.00020822,41514.0,41509.0,0.05]
[1641741093934,0.00020822,41514.0,41510.0,0.0478]
[1641741094580,0.00720822,41514.0,41510.0,0.0608]
[1641741095183,0.00720822,41514.0,41510.0,0.0558]
[1641741095782,0.00020822,41514.0,41510.0,0.0428]
[1641741096182,0.00020822,41514.0,41510.0,0.036017]
[1641741096484,0.00620822,41514.0,41510.0,0.051017]
[1641741096884,0.00641658,41514.0,41510.0,0.051017]
[1641741097086,0.00620836,41514.0,41510.0,0.051017]
[1641741097684,0.00620836,41514.0,41510.0,0.036017]
[1641741097935,0.00041672,41514.0,41510.0,0.036017]
[1641741098133,0.00020836,41514.0,41510.0,0.036017]
[1641741098534,0.01120836,41514.0,41510.0,0.044017]
[1641741099539,0.01120836,41514.0,41498.0,0.5979]
[1641741099540,0.90060855,41499.0,41498.0,0.5979]
[1641741099740,1.24225837,41499.0,41497.0,0.00067544]
[1641741099937,0.389051,41498.0,41497.0,0.00067544]
[1641741100139,0.789051,41498.0,41497.0,0.00067544]
[1641741100339,0.789051,41498.0,41494.0,0.00032]
[1641741100642,1.4730489,41498.0,41497.0,0.014]
[1641741101339,1.0730489,41498.0,41497.0,0.014]
[1641741101784,0.72311832,41498.0,41494.0,0.00032]
[1641741101984,0.2240189,41497.0,41494.0,0.00032]
[1641741102184,0.389051,41496.0,41494.0,0.00032]
[1641741102385,0.21039169,41495.0,41494.0,0.00049442]
[1641741102586,0.21039169,41495.0,41494.0,0.02249442]
[1641741102985,0.009,41497.0,41494.0,0.02249442]
[1641741103485,0.009,41497.0,41494.0,0.02232]
[1641741103686,0.389051,41496.0,41494.0,0.02232]
[1641741103886,0.55060855,41499.0,41494.0,0.02232]
[1641741103887,0.55060855,41499.0,41494.0,0.00032]
[1641741104486,0.55060855,41499.0,41494.0,0.00832]
[1641741104487,0.56260855,41499.0,41494.0,0.00832]
[1641741104786,0.56260855,41499.0,41496.0,0.26578281]
[1641741104986,0.56260855,41499.0,41497.0,0.0478]
[1641741105431,0.56260855,41499.0,41498.0,0.70213862]
[1641741105632,0.56260855,41499.0,41498.0,0.59993862]
[1641741105932,0.55060855,41499.0,41498.0,0.64993862]
[1641741106532,0.55060855,41499.0,41498.0,0.66693862]
[1641741107734,0.55060855,41499.0,41498.0,0.64993862]
[1641741108538,0.55660855,41499.0,41498.0,0.0628]
[1641741109889,0.55060855,41499.0,41498.0,0.0478]
[1641741110189,0.55060855,41499.0,41498.0,0.43082735]
[1641741110690,0.55460855,41499.0,41498.0,0.60282735]
[1641741111890,0.4951477,41499.0,41498.0,0.58082735]
[1641741112490,0.4951477,41499.0,41498.0,0.60082735]
[1641741112690,0.4951477,41499.0,41498.0,0.45082735]
[1641741112925,0.4951477,41499.0,41498.0,0.55082735]
[1641741113928,0.4951477,41499.0,41498.0,0.53082735]
[1641741114526,0.4951477,41499.0,41498.0,0.55582735]
[1641741115932,0.4951477,41499.0,41498.0,0.53082735]
[1641741116130,0.23754886,41513.0,41510.0,9.29371908]
[1641741116433,0.33508687,41514.0,41510.0,9.29371908]
[1641741116885,0.33508687,41514.0,41510.0,8.47273362]
[1641741117784,0.0481,41515.0,41510.0,8.47273362]
[1641741118586,0.0601,41515.0,41510.0,8.47273362]
[1641741118787,1.274,41514.0,41510.0,5.36514304]
[1641741118991,1.05,41511.0,41503.0,0.00017481]
[1641741119187,0.00128138,41504.0,41503.0,0.00017481]
[1641741119388,1.06953238,41504.0,41503.0,0.00017481]
[1641741119987,1.36345511,41504.0,41503.0,0.00017481]
[1641741120188,1.36345511,41504.0,41501.0,0.00017484]
[1641741120629,1.37545511,41504.0,41501.0,0.00017484]
[1641741121231,0.25347996,41503.0,41500.0,0.00017484]
[1641741121429,0.389051,41502.0,41500.0,0.00017484]
[1641741121631,0.23194959,41501.0,41500.0,0.00017484]
[1641741121829,0.389051,41501.0,41500.0,0.00017484]
[1641741122029,0.08655138,41504.0,41500.0,0.00017484]
[1641741122030,1.274,41505.0,41501.0,0.23194959]
[1641741122331,0.18286821,41505.0,41502.0,0.0478]
[1641741122529,0.00139829,41507.0,41502.0,0.0478]
[1641741122530,0.00139829,41507.0,41505.0,0.23286821]
[1641741122730,0.00139829,41507.0,41506.0,1.09904371]
[1641741122930,0.00139829,41507.0,41506.0,2.44825393]
[1641741123132,0.00139829,41507.0,41506.0,1.55848691]